bitfinex/quotes_SOLUSD_20241024
["timestamp","ask_amount","ask_price","bid_price","bid_amount"]
[1729812031930,0.1,178.02,177.98,9.83311821]
[1729812033052,0.1,178.04,178.0,9.83311821]
[1729812033356,0.1,178.02,178.0,9.83311821]
[1729812033862,0.1,178.01,178.0,9.83311821]
[1729812034239,0.1,178.03,178.0,9.83311821]
[1729812034434,0.2,178.03,178.0,9.83311821]
[1729812034654,0.1,178.05,178.02,9.83311821]
[1729812034855,0.1,178.04,178.02,9.83311821]
[1729812036064,0.1,178.05,178.01,9.83311821]
[1729812036269,0.1,178.04,178.01,9.83311821]
[1729812036445,0.1,178.04,178.02,9.83311821]
[1729812037044,0.1,178.06,178.02,9.83311821]
[1729812037246,0.2,178.07,178.02,9.83311821]
[1729812037464,0.1,178.06,178.02,9.83311821]
[1729812037639,9.93311821,178.06,177.94,20.12549]
[1729812037842,0.1,178.07,177.94,20.25098]
[1729812037843,9.93311821,178.03,177.94,20.25098]
[1729812038146,0.2,178.02,177.98,20.0]
[1729812038859,0.2,178.02,177.98,29.83311821]
[1729812039961,0.1,178.02,177.99,9.83311821]
[1729812040163,0.1,178.02,178.0,9.83311821]
[1729812040354,0.2,178.02,178.0,9.83311821]
[1729812040554,0.1,178.02,178.0,9.83311821]
[1729812040757,0.2,178.02,177.99,9.83311821]
[1729812041165,0.1,178.02,177.99,9.83311821]
[1729812041357,0.2,178.02,177.99,9.83311821]
[1729812041869,0.2,178.02,177.98,9.83311821]
[1729812042957,0.2,178.02,177.95,0.12549]
[1729812043153,0.2,178.02,177.98,9.83311821]
[1729812046859,0.1,178.0,177.94,20.25098]
[1729812047058,0.2,178.0,177.97,9.83311821]
[1729812048069,0.2,178.0,177.96,9.83311821]
[1729812053073,0.2,178.0,177.98,9.83311821]
[1729812055077,0.1,178.0,177.98,9.83311821]
[1729812055278,0.2,178.0,177.98,9.83311821]
[1729812056082,0.1,178.0,177.98,9.83311821]
[1729812056372,0.2,178.0,177.98,9.83311821]
[1729812057173,0.1,178.0,177.98,9.83311821]
[1729812057377,0.1,178.01,177.98,9.83311821]
[1729812057757,0.1,178.0,177.98,9.83311821]
[1729812059179,0.1,178.01,177.99,9.83311821]
[1729812059387,0.1,178.03,178.0,9.83311821]
[1729812060864,0.2,178.03,178.0,9.83311821]
[1729812061175,0.2,178.02,178.0,9.83311821]
[1729812061664,0.2,178.02,177.99,9.83311821]
[1729812062576,0.1,178.02,177.99,9.83311821]
[1729812062770,0.2,178.02,177.98,9.83311821]
[1729812062973,0.2,178.02,177.94,20.25098]
[1729812062974,0.2,178.01,177.96,9.83311821]
[1729812063177,0.1,178.0,177.97,9.83311821]
[1729812064872,0.1,178.0,177.94,6.09442408]
[1729812065086,0.1,178.0,177.97,9.83311821]
[1729812066082,0.2,178.01,177.97,9.83311821]
[1729812066764,0.1,178.0,177.97,9.83311821]
[1729812067079,0.1,178.0,177.94,6.09442408]
[1729812067383,0.2,178.0,177.96,9.83311821]
[1729812067989,10.03311821,178.0,177.95,29.83311821]
[1729812070089,0.2,178.0,177.96,9.83311821]
[1729812072962,10.03311821,177.97,177.94,5.84344408]
[1729812073167,9.93311821,177.95,177.91,9.83311821]
[1729812074889,10.03311821,177.95,177.9,9.83311821]
[1729812075275,10.03311821,177.95,177.91,20.0]
[1729812076591,16.3205,177.98,177.9,20.0]
[1729812076592,10.03311821,177.94,177.9,20.0]
[1729812078495,0.2,177.94,177.9,29.83311821]
[1729812079292,0.1,177.94,177.9,29.83311821]
[1729812079498,0.2,177.94,177.9,29.83311821]
[1729812082984,0.2,177.94,177.91,9.83311821]
[1729812084382,0.1,177.94,177.91,9.83311821]
[1729812084720,0.2,177.94,177.91,9.83311821]
[1729812085094,0.1,177.94,177.91,9.83311821]
[1729812085275,10.03311821,177.94,177.9,29.83311821]
[1729812086998,9.93311821,177.94,177.9,29.83311821]
[1729812087175,10.03311821,177.94,177.9,20.0]
[1729812087378,0.2,177.9,177.89,5.8453517]
[1729812087683,0.2,177.87,177.83,5.85119948]
[1729812087888,9.83311821,177.86,177.83,5.85119948]
[1729812088186,9.93311821,177.84,177.78,0.97768591]
[1729812088388,10.03311821,177.83,177.8,5.85227556]
[1729812088600,10.03311821,177.83,177.77,9.83311821]
[1729812088775,9.83311821,177.82,177.77,9.83311821]
[1729812089694,9.83311821,177.82,177.76,5.85269136]
[1729812089695,9.93311821,177.8,177.76,5.85269136]
[1729812089994,9.83311821,177.79,177.71,4.7749]
[1729812090199,9.83311821,177.79,177.73,9.83311821]
[1729812090200,9.83311821,177.78,177.73,9.83311821]
[1729812090494,10.03311821,177.77,177.73,5.85373359]
[1729812090683,0.2,177.79,177.75,9.83311821]
[1729812090885,0.1,177.78,177.75,9.83311821]
[1729812091274,0.1,177.77,177.7,5.85350053]
[1729812091481,0.2,177.77,177.73,9.83311821]
[1729812091678,0.1,177.78,177.74,9.83311821]
[1729812092381,0.1,177.77,177.74,9.83311821]
[1729812093098,10.03311821,177.77,177.72,9.83311821]
[1729812093394,10.03311821,177.77,177.73,20.0]
[1729812093898,9.83311821,177.76,177.73,20.0]
[1729812094399,9.83311821,177.76,177.71,20.0]
[1729812094400,9.93311821,177.75,177.71,20.0]
[1729812096399,9.83311821,177.74,177.71,20.0]
[1729812098000,0.2,177.71,177.7,5.85350053]
[1729812098211,10.03311821,177.73,177.7,5.85350053]
[1729812098502,0.1,177.73,177.69,9.83311821]
[1729812098710,0.1,177.73,177.67,5.85867103]
[1729812098711,0.1,177.74,177.7,9.83311821]
[1729812099081,0.1,177.73,177.7,9.83311821]
[1729812100199,0.1,177.73,177.69,9.83311821]
[1729812100505,0.1,177.73,177.68,0.12549]
[1729812100506,9.83311821,177.71,177.68,20.0]
[1729812100803,9.93311821,177.71,177.68,20.0]
[1729812101002,0.1,177.68,177.67,5.85867103]
[1729812101178,9.93311821,177.68,177.67,5.85867103]
[1729812101378,9.93311821,177.68,177.62,9.83311821]
[1729812101580,9.93311821,177.68,177.64,5.85946394]
[1729812102309,9.93311821,177.68,177.65,20.0]
[1729812102487,9.83311821,177.67,177.65,20.0]
[1729812102888,9.83311821,177.66,177.65,20.0]
[1729812103093,9.93311821,177.66,177.64,5.85946394]
[1729812103605,0.1,177.69,177.64,15.69258215]
[1729812103813,9.93311821,177.69,177.64,15.69258215]
[1729812104107,10.03311821,177.69,177.64,15.69258215]
[1729812104307,0.1,177.68,177.65,20.0]
[1729812106520,9.93311821,177.68,177.65,20.0]
[1729812108409,9.83311821,177.67,177.65,20.0]
[1729812108798,9.93311821,177.68,177.65,20.0]
[1729812111296,0.1,177.68,177.65,20.0]
[1729812112813,15.9316,177.71,177.67,9.83311821]
[1729812113018,25.76471821,177.71,177.67,9.83311821]
[1729812114122,25.66471821,177.71,177.67,9.83311821]
[1729812115419,9.93311821,177.73,177.68,29.83311821]
[1729812115619,10.03311821,177.73,177.68,29.83311821]
[1729812115922,0.1,177.72,177.68,29.83311821]
[1729812116419,10.03311821,177.73,177.68,29.83311821]
[1729812116803,0.1,177.73,177.7,9.83311821]
[1729812117115,0.1,177.74,177.71,7.22743821]
[1729812117321,16.35,177.75,177.71,7.22743821]
[1729812117522,0.2,177.76,177.72,9.83311821]
[1729812117820,0.1,177.75,177.72,9.83311821]
[1729812118214,0.1,177.76,177.72,9.83311821]
[1729812118522,0.1,177.75,177.72,9.83311821]
[1729812119622,0.1,177.75,177.71,9.83311821]
[1729812119926,0.1,177.75,177.72,20.0]
[1729812120103,0.1,177.76,177.72,20.0]
[1729812120304,0.2,177.76,177.72,20.0]
[1729812120610,0.1,177.75,177.72,20.0]
[1729812121125,0.1,177.75,177.72,9.83311821]
[1729812121318,0.1,177.74,177.72,9.83311821]
[1729812121819,0.1,177.78,177.74,20.0]
[1729812122006,0.1,177.77,177.74,29.83311821]
[1729812123121,0.1,177.76,177.73,9.83311821]
[1729812123431,0.1,177.73,177.67,20.37647]
[1729812123637,0.1,177.72,177.67,20.0]
[1729812123815,0.1,177.72,177.69,20.0]
[1729812124508,0.1,177.72,177.68,9.83311821]
[1729812124830,9.93311821,177.71,177.67,0.25098]
[1729812125234,9.93311821,177.71,177.66,5.85179104]
[1729812125235,9.93311821,177.7,177.66,5.85179104]
[1729812125407,0.2,177.71,177.67,9.83311821]
[1729812125606,16.35,177.72,177.69,9.83311821]
[1729812125812,0.2,177.73,177.7,9.83311821]
[1729812127532,0.2,177.73,177.69,9.83311821]
[1729812130125,0.1,177.72,177.69,9.83311821]
[1729812131930,0.1,177.72,177.68,9.83311821]
[1729812132234,0.1,177.72,177.69,20.0]
[1729812133135,0.1,177.72,177.69,9.83311821]
[1729812133934,9.93311821,177.72,177.68,9.83311821]
[1729812134128,9.93311821,177.72,177.69,20.0]
[1729812135235,0.1,177.69,177.68,20.0]
[1729812135530,9.93311821,177.69,177.68,20.0]
[1729812136220,9.93311821,177.69,177.67,5.84987397]
[1729812136426,9.83311821,177.68,177.67,5.84987397]
[1729812137936,10.03311821,177.69,177.67,5.84987397]
[1729812140437,8.03311821,177.69,177.67,5.84987397]
[1729812141833,9.83311821,177.68,177.67,5.84987397]
[1729812143642,9.83311821,177.68,177.59,9.83311821]
[1729812143940,9.83311821,177.65,177.64,5.8521162]
[1729812144245,9.83311821,177.66,177.6,9.83311821]
[1729812144426,9.83311821,177.66,177.64,5.8521162]
[1729812144753,9.83311821,177.66,177.61,20.0]
[1729812144928,9.83311821,177.66,177.64,5.852098]
[1729812145131,9.83311821,177.66,177.61,20.0]
[1729812145841,23.0092,177.69,177.6,5.85234263]
[1729812145842,9.83311821,177.62,177.6,5.85234263]
[1729812146021,9.83311821,177.62,177.58,20.0]
[1729812146228,9.83311821,177.64,177.59,9.83311821]
[1729812147249,9.83311821,177.63,177.58,29.83311821]
[1729812148020,9.83311821,177.62,177.58,20.0]
[1729812148223,9.83311821,177.63,177.58,20.0]
[1729812149144,9.83311821,177.62,177.58,20.0]
[1729812150531,26.31991821,177.62,177.57,5.85188647]
[1729812150729,9.83311821,177.61,177.57,20.0]
[1729812150925,26.31991821,177.62,177.57,20.0]
[1729812152150,25.31991821,177.62,177.57,9.83311821]
[1729812152348,15.4868,177.62,177.58,9.83311821]
[1729812153836,25.31991821,177.62,177.57,9.83311821]
[1729812156837,16.0552,177.67,177.61,9.83311821]
[1729812157155,9.83311821,177.65,177.6,9.83311821]
[1729812165562,9.83311821,177.65,177.6,10.83311821]
[1729812166266,16.0552,177.67,177.6,10.83311821]
[1729812166572,9.83311821,177.65,177.6,10.83311821]
[1729812169566,16.0552,177.67,177.62,9.83311821]
[1729812169869,16.0552,177.67,177.63,9.83311821]
[1729812177456,25.88831821,177.67,177.63,9.83311821]
[1729812178665,16.0552,177.67,177.63,9.83311821]
[1729812178865,21.9444,177.74,177.65,9.83311821]
[1729812179070,9.83311821,177.71,177.66,9.83311821]
[1729812179264,9.83311821,177.7,177.66,9.83311821]
[1729812180194,9.83311821,177.7,177.65,9.83311821]
[1729812180879,23.776884,177.73,177.66,9.83311821]
[1729812181172,9.83311821,177.71,177.66,9.83311821]
[1729812181555,9.83311821,177.7,177.66,9.83311821]
[1729812181756,9.83311821,177.7,177.61,0.12549]
[1729812181757,9.83311821,177.67,177.64,20.0]
[1729812183057,9.83311821,177.65,177.6,10.83311821]
[1729812183271,9.83311821,177.64,177.6,1.0]
[1729812183576,9.83311821,177.65,177.6,10.83311821]
[1729812193167,9.83311821,177.66,177.61,9.83311821]
[1729812193881,9.83311821,177.66,177.62,9.83311821]
[1729812194586,9.83311821,177.66,177.61,9.83311821]
[1729812196282,9.83311821,177.65,177.6,30.83311821]
[1729812198798,21.9444,177.68,177.61,9.83311821]
[1729812198799,9.83311821,177.66,177.61,9.83311821]
[1729812200392,21.9444,177.68,177.61,9.83311821]
[1729812200690,9.83311821,177.67,177.62,9.83311821]
[1729812202304,9.83311821,177.67,177.61,9.83311821]
[1729812203082,9.83311821,177.66,177.61,9.83311821]
[1729812203389,9.83311821,177.65,177.6,21.0]
[1729812210008,9.83311821,177.65,177.6,30.83311821]
[1729812210209,9.83311821,177.63,177.6,1.0]
[1729812210402,5.6285,177.67,177.6,1.0]
[1729812210711,9.83311821,177.62,177.6,1.0]
[1729812212016,9.83311821,177.64,177.6,1.0]
[1729812212323,9.83311821,177.65,177.6,10.83311821]
[1729812213089,9.83311821,177.66,177.61,9.83311821]
[1729812213288,27.5727,177.68,177.6,10.83311821]
[1729812213289,9.83311821,177.65,177.6,10.83311821]
[1729812214511,9.83311821,177.65,177.6,1.0]
[1729812214709,9.83311821,177.65,177.6,10.83311821]
[1729812217319,9.83311821,177.64,177.6,1.0]
[1729812217504,9.83311821,177.64,177.6,10.83311821]
[1729812218921,9.83311821,177.65,177.6,10.83311821]
[1729812220310,15.8241,177.68,177.63,9.83311821]
[1729812220510,15.8241,177.68,177.67,9.83311821]
[1729812220719,16.10071821,177.72,177.67,9.83311821]
[1729812221421,9.83311821,177.7,177.65,9.83311821]
[1729812224322,9.83311821,177.69,177.65,9.83311821]
[1729812226420,9.83311821,177.69,177.64,9.83311821]
[1729812226603,9.83311821,177.69,177.6,3.30824857]
[1729812226915,9.83311821,177.69,177.64,9.83311821]
[1729812227724,9.83311821,177.68,177.64,9.83311821]
[1729812229026,6.2676,177.72,177.66,9.83311821]
[1729812229204,9.83311821,177.71,177.66,9.83311821]
[1729812229403,9.83311821,177.7,177.65,9.83311821]
[1729812231826,9.83311821,177.69,177.64,9.83311821]
[1729812232924,9.83311821,177.68,177.61,20.0]
[1729812233230,9.83311821,177.68,177.63,9.83311821]
[1729812233629,9.83311821,177.68,177.62,9.83311821]
[1729812233926,9.83311821,177.68,177.63,20.0]
[1729812234330,9.83311821,177.67,177.61,20.0]
[1729812234625,9.83311821,177.64,177.6,6.84527181]
[1729812234823,9.83311821,177.64,177.6,1.0]
[1729812237037,9.83311821,177.62,177.6,1.0]
[1729812241115,9.83311821,177.63,177.6,1.0]
[1729812243335,25.86461821,177.64,177.6,1.0]
[1729812244043,16.0315,177.64,177.6,10.83311821]
[1729812244225,6.1673,177.66,177.63,9.83311821]
[1729812244930,6.1673,177.66,177.62,9.83311821]
[1729812246639,6.1673,177.66,177.63,9.83311821]
[1729812249545,6.1673,177.66,177.62,9.83311821]
[1729812251645,21.62921821,177.66,177.6,1.0]
[1729812251939,9.83311821,177.65,177.6,1.0]
[1729812252142,9.83311821,177.65,177.6,10.83311821]
[1729812252343,9.83311821,177.65,177.61,9.83311821]
[1729812253540,9.83311821,177.65,177.6,10.83311821]
[1729812255751,9.83311821,177.64,177.6,1.0]
[1729812261847,9.83311821,177.63,177.6,1.0]
[1729812262055,9.83311821,177.61,177.6,1.0]
[1729812262255,15.9637,177.62,177.6,1.0]
[1729812262467,25.79681821,177.62,177.6,1.0]
[1729812267754,15.9637,177.62,177.6,1.0]
[1729812267961,9.83311821,177.65,177.6,10.83311821]
[1729812268157,27.7598,177.66,177.6,10.83311821]
[1729812268158,22.131,177.66,177.62,9.83311821]
[1729812268369,15.9637,177.66,177.62,9.83311821]
[1729812268850,25.79681821,177.66,177.61,9.83311821]
[1729812271963,25.79681821,177.66,177.6,1.0]
[1729812271964,9.83311821,177.65,177.6,10.83311821]
[1729812272966,9.83311821,177.63,177.6,1.0]
[1729812274851,21.5925,177.66,177.6,1.0]
[1729812274852,9.83311821,177.64,177.6,1.0]
[1729812277059,9.83311821,177.63,177.6,1.0]
[1729812285066,9.83311821,177.64,177.6,1.0]
[1729812285973,9.83311821,177.62,177.6,1.0]
[1729812286188,9.83311821,177.61,177.6,1.0]
[1729812290880,55.24090221,177.61,177.6,1.0]
[1729812295789,55.36639221,177.61,177.6,1.0]
[1729812296091,55.81737221,177.61,177.6,1.0]
[1729812298072,55.71737221,177.61,177.6,1.0]
[1729812298272,16.0006,177.61,177.6,1.0]
[1729812298492,25.83371821,177.61,177.6,1.0]
[1729812299576,49.61060221,177.61,177.6,1.0]
[1729812300098,55.49188221,177.61,177.6,1.0]
[1729812300279,55.24090221,177.61,177.6,1.0]
[1729812313303,49.61060221,177.61,177.6,1.0]
[1729812313505,33.61000221,177.61,177.6,1.0]
[1729812314217,9.83311821,177.61,177.6,1.0]
[1729812314881,9.83311821,177.62,177.6,1.0]
[1729812315509,23.776884,177.62,177.6,1.0]
[1729812315708,15.4148,177.65,177.6,10.83311821]
[1729812315913,9.83311821,177.64,177.6,1.0]
[1729812324516,9.83311821,177.64,177.6,10.83311821]
[1729812324894,25.24791821,177.65,177.6,10.83311821]
[1729812326413,9.83311821,177.64,177.6,1.0]
[1729812337227,33.61000221,177.61,177.6,1.0]
[1729812338919,39.24030221,177.61,177.6,1.0]
[1729812346212,39.71677221,177.61,177.6,1.0]
[1729812350635,29.883654,177.61,177.6,1.0]
[1729812350832,39.71677221,177.61,177.6,1.0]
[1729812356047,56.14607221,177.61,177.6,1.0]
[1729812357943,56.04607221,177.61,177.6,1.0]
[1729812358643,56.14607221,177.61,177.6,1.0]
[1729812359054,56.04607221,177.61,177.6,1.0]
[1729812359547,56.14607221,177.61,177.6,1.0]
[1729812361146,56.04607221,177.61,177.6,1.0]
[1729812361532,9.83311821,177.61,177.6,1.0]
[1729812362052,9.95860821,177.61,177.6,1.0]
[1729812362948,33.86098221,177.61,177.6,1.0]
[1729812363248,39.49128221,177.61,177.6,1.0]
[1729812365041,24.027864,177.61,177.6,1.0]
[1729812365441,39.49128221,177.61,177.6,1.0]
[1729812367140,39.71677221,177.61,177.6,1.0]
[1729812373144,55.73287221,177.61,177.6,1.0]
[1729812373950,55.63287221,177.61,177.6,1.0]
[1729812375457,55.73287221,177.61,177.6,1.0]
[1729812377056,55.63287221,177.61,177.6,1.0]
[1729812377243,55.73287221,177.61,177.6,1.0]
[1729812378457,45.799754,177.61,177.6,1.0]
[1729812378661,55.63287221,177.61,177.6,1.0]
[1729812380351,55.73287221,177.61,177.6,1.0]
[1729812382664,0.22549,177.58,177.53,0.6036853]
[1729812382958,23.776884,177.55,177.53,0.6036853]
[1729812383544,9.83311821,177.56,177.53,0.6036853]
[1729812387464,33.61000221,177.57,177.53,0.6036853]
[1729812387642,33.61000221,177.57,177.53,0.1036853]
[1729812389443,23.776884,177.57,177.53,0.1036853]
[1729812392458,33.61000221,177.57,177.53,0.1036853]
[1729812392660,9.83311821,177.56,177.53,0.1036853]
[1729812395458,23.776884,177.57,177.53,0.1036853]
[1729812395657,33.61000221,177.57,177.53,0.1036853]
[1729812397860,23.776884,177.57,177.53,0.1036853]
[1729812399364,23.776884,177.55,177.53,0.1036853]
[1729812399569,23.776884,177.56,177.53,0.1036853]
[1729812404349,9.95860821,177.55,177.53,0.1036853]
[1729812404549,23.776884,177.54,177.53,0.1036853]
[1729812408173,33.61000221,177.54,177.53,0.1036853]
[1729812409475,39.36799221,177.54,177.53,0.1036853]
[1729812411075,33.61000221,177.54,177.53,0.1036853]
[1729812411267,23.776884,177.54,177.53,0.1036853]
[1729812415883,23.776884,177.56,177.53,0.1036853]
[1729812428572,29.408784,177.56,177.53,0.1036853]
[1729812432299,23.776884,177.56,177.53,9.93680351]
[1729812432467,5.6306,177.6,177.55,9.83311821]
[1729812432785,15.9161,177.61,177.58,9.83311821]
[1729812433996,15.9161,177.61,177.57,9.83311821]
[1729812434189,23.776884,177.6,177.57,9.83311821]
[1729812434375,23.776884,177.6,177.56,9.83311821]
[1729812434690,0.12549,177.59,177.53,0.1036853]
[1729812434992,23.776884,177.58,177.54,9.83311821]
[1729812436275,39.24140221,177.58,177.53,9.93680351]
[1729812437400,23.776884,177.58,177.55,9.83311821]
[1729812437569,25.74921821,177.61,177.56,9.83311821]
[1729812437772,15.9161,177.61,177.58,9.83311821]
[1729812437991,5.7297,177.63,177.58,9.83311821]
[1729812438692,5.6297,177.63,177.59,9.83311821]
[1729812438996,5.63,177.62,177.59,9.83311821]
[1729812439289,23.776884,177.61,177.59,9.83311821]
[1729812441398,5.63,177.62,177.59,9.83311821]
[1729812443591,21.958,177.65,177.6,9.83311821]
[1729812443792,5.6294,177.64,177.6,9.83311821]
[1729812444899,21.0298,177.65,177.61,9.83311821]
[1729812451204,15.4007,177.65,177.61,9.83311821]
[1729812453503,25.23381821,177.65,177.6,9.83311821]
[1729812454407,15.4007,177.65,177.61,9.83311821]
[1729812456604,5.628,177.68,177.59,5.7749]
[1729812456805,15.46111821,177.68,177.63,9.83311821]
[1729812456981,9.83311821,177.66,177.6,9.83311821]
[1729812457186,9.83311821,177.65,177.6,9.83311821]
[1729812458280,9.83311821,177.66,177.6,9.83311821]
[1729812458682,15.46181821,177.66,177.6,9.83311821]
[1729812461892,15.46181821,177.66,177.55,5.7749]
[1729812461893,9.83311821,177.64,177.56,20.0]
[1729812462205,9.83311821,177.64,177.58,9.83311821]
[1729812463294,15.46271821,177.64,177.58,9.83311821]
[1729812463492,9.83311821,177.63,177.58,9.83311821]
[1729812464213,9.83311821,177.64,177.59,9.83311821]
[1729812464387,15.46241821,177.64,177.59,9.83311821]
[1729812466315,5.6293,177.64,177.59,9.83311821]
[1729812467599,5.6293,177.64,177.55,5.7749]
[1729812467803,15.46241821,177.64,177.59,9.83311821]
[1729812469210,9.83311821,177.6,177.54,9.83311821]
[1729812469706,9.83311821,177.61,177.55,9.83311821]
[1729812469915,22.3662,177.63,177.58,9.83311821]
[1729812470318,32.19931821,177.63,177.58,9.83311821]
[1729812470996,5.6299,177.62,177.58,9.83311821]
[1729812471305,15.46301821,177.62,177.57,9.83311821]
[1729812471518,9.83311821,177.6,177.55,9.83311821]
[1729812472289,33.73549221,177.61,177.56,9.83311821]
[1729812472712,5.6306,177.6,177.56,9.83311821]
[1729812476697,5.6306,177.6,177.55,9.83311821]
[1729812477496,15.46371821,177.6,177.55,9.83311821]
[1729812482416,15.46371821,177.6,177.54,9.83311821]
[1729812482618,9.83311821,177.59,177.53,9.93680351]
[1729812482916,9.83311821,177.58,177.53,9.93680351]
[1729812483125,9.83311821,177.57,177.53,0.1036853]
[1729812483320,9.83311821,177.56,177.53,0.1036853]
[1729812483616,9.83311821,177.57,177.53,0.1036853]
[1729812484019,9.83311821,177.56,177.53,0.1036853]
[1729812484524,5.6322,177.55,177.53,0.1036853]
[1729812487401,23.776884,177.56,177.53,0.1036853]
[1729812487604,15.0215,177.58,177.53,9.93680351]
[1729812487813,20.6529,177.58,177.54,9.83311821]
[1729812488124,30.48601821,177.58,177.53,9.93680351]
[1729812488612,30.48601821,177.58,177.53,0.1036853]
[1729812489128,20.6529,177.58,177.54,9.83311821]
[1729812489920,5.6303,177.61,177.55,9.83311821]
[1729812490101,9.83311821,177.6,177.55,9.83311821]
[1729812494218,15.46381821,177.6,177.55,9.83311821]
[1729812494430,23.902374,177.59,177.53,9.93680351]
[1729812494608,9.83311821,177.58,177.53,9.93680351]
[1729812495209,15.46451821,177.58,177.53,9.93680351]
[1729812495929,15.46451821,177.58,177.53,0.1036853]
[1729812496109,9.83311821,177.57,177.53,0.1036853]
[1729812497125,9.83311821,177.56,177.53,0.1036853]
[1729812497427,9.83311821,177.57,177.53,0.1036853]
[1729812497609,23.902374,177.57,177.53,0.1036853]
[1729812498023,33.73549221,177.57,177.53,0.1036853]
[1729812498916,39.36719221,177.57,177.53,0.1036853]
[1729812502922,29.534074,177.57,177.53,0.1036853]
[1729812503224,0.12549,177.57,177.53,0.1036853]
[1729812504115,9.95860821,177.57,177.53,0.1036853]
[1729812504431,15.59020821,177.57,177.53,0.1036853]
[1729812505130,15.1215,177.62,177.53,9.93680351]
[1729812505336,9.83311821,177.6,177.54,9.83311821]
[1729812505634,9.83311821,177.57,177.53,0.1036853]
[1729812505809,9.83311821,177.58,177.53,0.1036853]
[1729812507429,15.46441821,177.58,177.53,0.1036853]
[1729812508808,9.83311821,177.59,177.53,9.93680351]
[1729812509010,9.83311821,177.58,177.53,0.1036853]
[1729812514908,9.83311821,177.57,177.53,0.1036853]
[1729812516213,9.83311821,177.58,177.53,0.1036853]
[1729812517240,0.12549,177.6,177.55,9.83311821]
[1729812517438,15.46341821,177.61,177.56,9.83311821]
[1729812518028,15.46341821,177.61,177.55,9.83311821]
[1729812519444,9.83311821,177.6,177.55,9.83311821]
[1729812520651,5.6303,177.61,177.55,9.83311821]
[1729812520830,15.46341821,177.61,177.55,9.83311821]
[1729812521741,23.902374,177.6,177.55,9.83311821]
[1729812521940,39.36639221,177.6,177.54,9.83311821]
[1729812522959,9.83311821,177.56,177.53,0.1036853]
[1729812523252,16.1976,177.56,177.53,0.1036853]
[1729812523430,24.002374,177.55,177.53,0.1036853]
[1729812523636,33.96098221,177.54,177.53,0.1036853]
[1729812525049,39.59348221,177.54,177.53,0.1036853]
[1729812525243,39.59348221,177.54,177.43,5.87008844]
[1729812525244,0.1,177.48,177.43,5.87008844]
[1729812525425,0.1,177.42,177.35,0.6036853]
[1729812525634,9.83311821,177.37,177.35,0.6036853]
[1729812526041,24.027864,177.43,177.36,9.83311821]
[1729812526240,24.027864,177.43,177.35,0.6036853]
[1729812526241,9.83311821,177.42,177.37,9.83311821]
[1729812526649,16.1976,177.44,177.39,9.83311821]
[1729812526837,26.03071821,177.44,177.39,9.83311821]
[1729812527348,9.83311821,177.46,177.41,9.83311821]
[1729812527752,9.83311821,177.45,177.4,9.83311821]
[1729812528050,16.1976,177.48,177.41,9.83311821]
[1729812528354,16.1976,177.48,177.44,9.83311821]
[1729812528650,0.1,177.58,177.47,9.83311821]
[1729812528956,5.6318,177.57,177.5,9.83311821]
[1729812529156,9.83311821,177.55,177.49,9.83311821]
[1729812529853,0.12549,177.54,177.49,9.83311821]
[1729812530026,0.12549,177.54,177.48,9.83311821]
[1729812530027,9.83311821,177.53,177.48,9.83311821]
[1729812531753,0.12549,177.54,177.5,9.83311821]
[1729812532050,0.12549,177.55,177.51,9.83311821]
[1729812532229,15.4261972,177.55,177.5,15.4261972]
[1729812532431,15.4261972,177.55,177.43,20.0]
[1729812532631,15.4261972,177.5,177.43,20.0]
[1729812532950,0.12549,177.55,177.43,20.0]
[1729812532951,15.4261972,177.52,177.46,15.4261972]
[1729812533137,15.4261972,177.51,177.42,20.12549]
[1729812533326,15.4261972,177.51,177.46,15.4261972]
[1729812533526,15.4261972,177.52,177.42,20.12549]
[1729812533750,15.4261972,177.52,177.46,15.4261972]
[1729812533942,15.4261972,177.51,177.46,15.4261972]
[1729812534260,15.4261972,177.5,177.42,20.0]
[1729812534555,15.4261972,177.51,177.45,15.4261972]
[1729812534759,15.4261972,177.51,177.46,15.4261972]
[1729812535652,31.4760972,177.5,177.42,20.0]
[1729812535852,15.4261972,177.46,177.36,6.4781]
[1729812536155,16.0499,177.5,177.42,15.4261972]
[1729812536156,15.4261972,177.47,177.42,15.4261972]